bitfinex/quotes_SOLUSD_20250718
["timestamp","ask_amount","ask_price","bid_price","bid_amount"]
[1752830550347,0.06,179.51,179.5,248.51063098]
[1752830552957,0.77,179.51,179.5,146.4]
[1752830553141,8.38960034,179.51,179.5,29.52]
[1752830553647,8.38960034,179.51,179.46,13.19179858]
[1752830553849,0.71,179.5,179.47,29.52]
[1752830554049,0.06,179.51,179.47,37.13960034]
[1752830554248,0.06,179.51,179.47,42.71151823]
[1752830554555,0.77,179.51,179.47,42.71151823]
[1752830554980,0.77,179.51,179.48,7.61960034]
[1752830555164,0.06,179.51,179.49,29.52]
[1752830555678,0.77,179.51,179.49,29.52]
[1752830556061,0.71,179.5,179.49,29.52]
[1752830556857,13.90063098,179.5,179.47,0.03]
[1752830557053,7.61960034,179.48,179.47,0.03]
[1752830557459,8.32960034,179.48,179.47,0.03]
[1752830558372,13.90125177,179.48,179.47,0.03]
[1752830558556,16.78468397,179.47,179.43,0.03]
[1752830558764,7.61960034,179.44,179.38,29.5]
[1752830558965,7.61960034,179.4,179.38,29.5]
[1752830559164,0.71,179.39,179.38,29.5]
[1752830559401,8.32960034,179.39,179.34,2.90873172]
[1752830559686,0.71,179.38,179.35,29.5]
[1752830559984,7.61960034,179.39,179.35,29.5]
[1752830560151,0.71,179.37,179.35,29.5]
[1752830560466,0.71,179.36,179.35,29.5]
[1752830561051,12.92089534,179.38,179.35,29.5]
[1752830561279,0.71,179.38,179.35,29.5]
[1752830561471,0.71,179.37,179.35,29.5]
[1752830563388,5.5748523,179.38,179.35,29.5]
[1752830563596,0.71,179.4,179.37,12.21089534]
[1752830563779,0.71,179.4,179.37,41.71089534]
[1752830564092,6.2835933,179.42,179.37,41.71089534]
[1752830564273,0.71,179.42,179.38,12.21089534]
[1752830564470,0.71,179.42,179.39,29.5]
[1752830564694,6.28359042,179.42,179.39,29.5]
[1752830565176,0.71,179.42,179.39,41.71089534]
[1752830567199,6.28360092,179.42,179.39,29.5]
[1752830567393,5.57360092,179.42,179.39,29.5]
[1752830567587,0.7,179.41,179.39,29.5]
[1752830567969,6.27325069,179.43,179.39,29.5]
[1752830568175,12.21089534,179.45,179.4,12.21089534]
[1752830568410,0.7,179.45,179.42,12.21089534]
[1752830568570,29.69557931,179.48,179.43,41.71089534]
[1752830568878,5.57227237,179.46,179.43,41.71089534]
[1752830569083,6.27227237,179.46,179.43,41.71089534]
[1752830569490,0.7,179.46,179.43,41.71089534]
[1752830569677,0.7,179.46,179.43,29.5]
[1752830569678,0.7,179.45,179.43,29.5]
[1752830570001,12.91089534,179.45,179.43,29.5]
[1752830570195,16.78468397,179.48,179.4,38.21089534]
[1752830570196,12.21089534,179.44,179.41,29.5]
[1752830570399,0.7,179.43,179.41,29.5]
[1752830570905,6.27321574,179.43,179.41,29.5]
[1752830571071,0.7,179.42,179.38,12.21089534]
[1752830571268,12.91089534,179.42,179.39,29.5]
[1752830571488,0.7,179.41,179.39,29.5]
[1752830571888,0.7,179.4,179.39,29.5]
[1752830573195,6.274136,179.4,179.39,29.5]
[1752830574099,18.48503134,179.4,179.39,29.5]
[1752830574800,18.48503134,179.4,179.37,29.48]
[1752830574979,17.78565283,179.38,179.37,29.48]
[1752830575175,18.48565283,179.38,179.33,0.03]
[1752830575396,12.21089534,179.36,179.34,29.48]
[1752830575907,0.7,179.35,179.34,29.48]
[1752830576090,12.91089534,179.35,179.34,29.48]
[1752830576902,12.76382949,179.35,179.34,29.48]
[1752830577099,18.33951948,179.35,179.34,29.48]
[1752830578803,18.33951948,179.35,179.34,29.51]
[1752830578993,12.21089534,179.4,179.34,29.51]
[1752830578994,0.7,179.38,179.34,0.03]
[1752830579200,12.21089534,179.39,179.35,29.48]
[1752830579505,0.7,179.39,179.35,29.48]
[1752830579718,6.27416814,179.4,179.35,41.69089534]
[1752830580009,0.7,179.39,179.35,29.48]
[1752830580392,12.21089534,179.41,179.35,48.07410237]
[1752830580576,12.27089534,179.43,179.37,12.21089534]
[1752830580782,5.57354302,179.42,179.38,29.48]
[1752830581402,12.21089534,179.39,179.35,29.48]
[1752830581603,12.21089534,179.37,179.35,29.48]
[1752830581815,12.91089534,179.37,179.35,29.48]
[1752830582182,12.21089534,179.38,179.35,29.48]
[1752830582380,0.06,179.43,179.35,41.69089534]
[1752830582381,12.21089534,179.4,179.35,41.69089534]
[1752830582584,12.91089534,179.41,179.36,12.21089534]
[1752830583189,12.21089534,179.4,179.35,41.94089534]
[1752830583577,12.91089534,179.41,179.36,12.21089534]
[1752830584000,12.91089534,179.41,179.36,12.46089534]
[1752830584487,12.91089534,179.41,179.36,12.21089534]
[1752830584692,5.57361598,179.42,179.37,12.21089534]
[1752830584893,12.21089534,179.42,179.38,29.48]
[1752830585094,12.21089534,179.41,179.38,35.046]
[1752830585313,12.91089534,179.41,179.38,29.48]
[1752830585925,12.21089534,179.42,179.38,29.48]
[1752830586114,18.48445835,179.42,179.38,29.48]
[1752830586310,12.91089534,179.42,179.38,29.48]
[1752830586612,18.48443529,179.42,179.38,29.48]
[1752830587319,12.91089534,179.41,179.38,29.48]
[1752830587519,12.21089534,179.42,179.38,29.48]
[1752830587816,12.91089534,179.42,179.38,29.48]
[1752830588015,5.63329146,179.43,179.38,29.48]
[1752830588016,0.06,179.43,179.39,12.21089534]
[1752830588213,0.06,179.43,179.38,5.57469094]
[1752830588516,12.21089534,179.4,179.39,29.46]
[1752830588714,12.91089534,179.4,179.39,29.46]
[1752830589490,12.21089534,179.41,179.36,12.21089534]
[1752830589718,17.78478332,179.41,179.37,29.46]
[1752830590017,18.54410784,179.43,179.38,12.21089534]
[1752830590222,17.84410784,179.43,179.38,12.46089534]
[1752830590519,0.06,179.43,179.42,12.21089534]
[1752830590693,0.06,179.43,179.42,12.46089534]
[1752830590894,0.06,179.43,179.42,187.67093776]
[1752830591803,0.06,179.43,179.42,193.24445241]
[1752830592001,0.06,179.43,179.42,179.8]
[1752830592199,0.06,179.43,179.42,175.84]
[1752830592701,0.06,179.43,179.42,183.71093776]
[1752830593024,0.06,179.43,179.42,188.28677614]
[1752830594126,0.06,179.43,179.42,175.84]
[1752830594318,0.06,179.43,179.42,188.03677614]
[1752830595109,0.06,179.43,179.42,181.406]
[1752830595321,0.06,179.43,179.42,188.03677614]
[1752830595694,0.06,179.43,179.42,175.84]
[1752830595894,0.78,179.43,179.42,175.84]
[1752830596094,0.06,179.43,179.42,175.84]
[1752830596327,0.06,179.43,179.42,29.44]
[1752830596710,0.78,179.43,179.42,29.44]
[1752830596912,12.97677614,179.43,179.42,29.44]
[1752830597106,12.97677614,179.43,179.4,29.42]
[1752830597422,12.19677614,179.41,179.4,29.42]
[1752830597623,12.19677614,179.42,179.4,29.42]
[1752830597830,12.91677614,179.42,179.4,29.42]
[1752830598206,0.72,179.42,179.4,29.42]
[1752830598405,0.06,179.43,179.4,29.42]
[1752830598604,5.63323665,179.43,179.4,29.42]
[1752830598831,0.72,179.42,179.4,29.42]
[1752830599310,0.72,179.41,179.4,29.42]
[1752830599510,12.19677614,179.42,179.4,29.42]
[1752830599919,12.91677614,179.42,179.4,29.42]
[1752830600118,0.06,179.43,179.4,29.42]
[1752830600312,0.06,179.43,179.42,12.19677614]
[1752830600509,0.06,179.43,179.42,75.01677614]
[1752830600713,0.06,179.43,179.42,62.82]
[1752830601552,0.06,179.43,179.42,29.42]
[1752830601711,18.54998017,179.43,179.42,29.42]
[1752830601908,18.54998017,179.43,179.37,61.0082]
[1752830602128,18.54998017,179.43,179.39,29.42]
[1752830602129,12.19677614,179.41,179.39,29.42]
[1752830602446,17.77039419,179.42,179.39,29.42]
[1752830602653,18.49039419,179.42,179.39,29.42]
[1752830603535,17.8300762,179.43,179.39,29.42]
[1752830603737,0.06,179.43,179.39,41.61677614]
[1752830604043,18.55004001,179.43,179.39,29.42]
[1752830604910,0.06,179.43,179.39,47.19117563]
[1752830605114,0.06,179.43,179.42,5.566]
[1752830605325,0.06,179.43,179.42,41.59677614]
[1752830605734,0.06,179.43,179.42,29.4]
[1752830607025,0.78,179.43,179.42,29.4]
[1752830607334,0.06,179.43,179.42,29.4]
[1752830608711,0.06,179.43,179.42,29.65]
[1752830608910,0.06,179.43,179.42,41.59677614]
[1752830609132,0.06,179.43,179.42,227.22029079]
[1752830609527,0.06,179.43,179.42,105.31097476]
[1752830609753,0.06,179.43,179.42,89.08364225]
[1752830611143,0.06,179.43,179.42,82.67884225]
[1752830612120,0.06,179.43,179.42,64.3512]
[1752830612521,0.06,179.43,179.42,62.8]
[1752830614723,0.06,179.43,179.42,70.42538577]
[1752830615657,0.06,179.43,179.42,62.8]
[1752830616219,0.06,179.43,179.42,29.4]
[1752830616422,0.78,179.43,179.42,29.4]
[1752830618342,0.78,179.43,179.39,59.95744467]
[1752830618549,7.62538577,179.41,179.39,29.38]
[1752830618851,0.72,179.4,179.39,29.38]
[1752830619052,8.34538577,179.4,179.39,29.38]
[1752830619542,5.57444673,179.39,179.38,29.36]
[1752830619746,13.9198325,179.39,179.35,0.03]
[1752830619952,7.62538577,179.37,179.36,29.36]
[1752830620133,8.34538577,179.37,179.35,29.39]
[1752830620324,8.34538577,179.36,179.35,0.03]
[1752830620520,5.57444673,179.39,179.35,0.03]
[1752830620739,7.62538577,179.37,179.35,0.03]
[1752830620928,5.5742102,179.4,179.35,7.65538577]
[1752830621133,5.5742102,179.4,179.36,29.36]
[1752830621134,7.62538577,179.39,179.36,29.36]
[1752830621345,8.34538577,179.39,179.36,29.36]
[1752830621545,7.62538577,179.38,179.36,29.36]
[1752830621853,8.34538577,179.38,179.36,29.36]
[1752830623954,13.92022878,179.38,179.36,29.36]
[1752830624132,8.34538577,179.37,179.36,29.36]
[1752830624535,8.34538577,179.37,179.35,0.03]
[1752830624746,5.57484301,179.38,179.35,0.03]
[1752830624747,8.33538577,179.36,179.35,0.03]
[1752830625645,25.12006974,179.36,179.35,0.03]
[1752830625979,30.69544886,179.36,179.35,0.03]
[1752830629456,30.69544886,179.36,179.35,1e-08]
[1752830629632,5.82298875,179.35,179.34,1e-08]
[1752830629829,14.15837452,179.35,179.34,1e-08]
[1752830630033,13.44837452,179.35,179.34,1e-08]
[1752830630252,19.73406451,179.35,179.34,1e-08]
[1752830630451,36.51874848,179.35,179.33,1e-08]
[1752830630654,34.33538577,179.34,179.33,1e-08]
[1752830630857,16.78468397,179.33,179.31,1e-08]
[1752830631036,42.78468397,179.29,179.2,39.7146]
[1752830631239,7.62538577,179.24,179.21,29.36]
[1752830631652,7.62538577,179.25,179.21,29.36]
[1752830632036,7.62538577,179.24,179.21,29.36]
[1752830632241,5.57942308,179.23,179.21,29.36]
[1752830632443,13.91480885,179.23,179.21,29.36]
[1752830632655,7.62538577,179.22,179.21,29.36]
[1752830633034,12.94322213,179.22,179.19,1.6291]
[1752830633235,12.94322213,179.21,179.17,62.79]
[1752830633486,12.94322213,179.21,179.17,29.34]
[1752830634856,17.81322883,179.22,179.17,41.82322213]
[1752830635057,17.81322883,179.22,179.17,29.59]
[1752830635469,18.52322883,179.22,179.17,29.34]
[1752830635653,12.94322213,179.22,179.17,47.15446804]
[1752830636362,0.71,179.25,179.19,12.23322213]
[1752830636566,0.71,179.25,179.18,0.25]
[1752830636567,12.94322213,179.27,179.22,12.23322213]
[1752830636860,5.57755591,179.29,179.23,29.36]
[1752830637163,12.23322213,179.28,179.23,41.59322213]
[1752830637570,12.23322213,179.28,179.23,41.84322213]
[1752830637571,0.71,179.28,179.23,41.84322213]
[1752830637748,12.94322213,179.28,179.23,41.59322213]
[1752830638060,12.94322213,179.27,179.23,29.36]
[1752830638462,0.71,179.26,179.23,29.36]
[1752830638657,12.94322213,179.26,179.23,29.36]
[1752830638862,12.23322213,179.26,179.23,29.36]
[1752830639265,17.81149169,179.27,179.23,29.36]
[1752830639575,18.52149169,179.27,179.23,29.36]
[1752830639981,12.23322213,179.29,179.23,47.17256154]
[1752830640150,12.23322213,179.28,179.23,41.84322213]
[1752830640356,18.52111306,179.28,179.23,41.59322213]
[1752830640651,12.94322213,179.28,179.23,41.59322213]
[1752830641362,12.94322213,179.28,179.23,47.17263085]
[1752830641582,18.52111829,179.28,179.23,41.59322213]
[1752830641764,12.94322213,179.27,179.23,29.36]
[1752830642269,0.71,179.27,179.23,29.36]
[1752830642473,12.94322213,179.27,179.23,29.36]
[1752830642668,5.57789616,179.28,179.23,34.93940246]
[1752830642974,17.81111829,179.28,179.23,41.59322213]
[1752830643162,12.94322213,179.27,179.23,29.36]
[1752830643571,12.94322213,179.27,179.23,29.39]
[1752830644472,12.94322213,179.27,179.23,34.96939973]
[1752830644699,0.71,179.31,179.26,12.23322213]
[1752830644869,22.64410415,179.33,179.28,12.23322213]
[1752830645392,9.70088202,179.33,179.29,29.34]
[1752830645576,9.70088202,179.33,179.29,41.82322213]
[1752830646088,17.80923539,179.34,179.29,41.82322213]
[1752830646462,29.4,179.36,179.3,18.06046697]
[1752830646660,12.29322213,179.36,179.31,12.48322213]
[1752830646863,12.94322213,179.35,179.3,12.23322213]
[1752830647059,12.94322213,179.35,179.29,68.92523244]
[1752830647060,0.71,179.34,179.29,81.15845457]
[1752830647263,12.94322213,179.34,179.29,75.58097772]
[1752830647488,0.71,179.33,179.29,68.36750952]
[1752830647689,12.23322213,179.35,179.3,12.23322213]
[1752830647893,12.94322213,179.34,179.29,62.79]
[1752830648085,0.71,179.33,179.29,75.02322213]
[1752830648282,12.94322213,179.35,179.3,12.23322213]
[1752830648508,5.63545817,179.36,179.28,2.1484867]
[1752830648509,17.80922302,179.34,179.28,2.1484867]
[1752830648684,12.94322213,179.33,179.28,39.82392213]
[1752830648879,12.23322213,179.33,179.28,40.07392213]
[1752830649674,12.23322213,179.34,179.29,12.23322213]
[1752830649890,12.23322213,179.33,179.28,45.40174025]
[1752830650079,12.94322213,179.33,179.28,33.16851812]
[1752830650278,12.94322213,179.33,179.28,45.40174025]
[1752830650708,0.71,179.33,179.29,12.23322213]
[1752830651080,12.94322213,179.33,179.28,45.65174025]
[1752830651889,0.77,179.36,179.3,12.23322213]
[1752830652096,13.00322213,179.36,179.31,12.23322213]
[1752830652273,13.00322213,179.36,179.31,12.48322213]
[1752830652475,0.77,179.36,179.31,12.48322213]
[1752830652784,0.77,179.36,179.31,18.0599507]
[1752830652984,0.06,179.36,179.32,12.7908844]
[1752830653182,0.06,179.36,179.33,41.80322213]
[1752830653385,0.06,179.36,179.34,0.55760008]
[1752830653697,0.06,179.36,179.34,12.79082221]
[1752830653899,0.06,179.36,179.34,13.04082221]
[1752830654078,0.06,179.36,179.35,12.48322213]
[1752830654283,0.06,179.36,179.35,0.25]
[1752830654899,0.06,179.36,179.35,12.48322213]
[1752830655087,0.06,179.36,179.34,29.32]
[1752830655795,0.06,179.36,179.34,41.55322213]
[1752830655981,0.06,179.36,179.34,47.37917848]
[1752830656316,0.06,179.36,179.35,0.80756899]
[1752830656672,0.06,179.36,179.35,13.04079112]
[1752830656878,0.06,179.36,179.35,0.55756899]
[1752830657088,0.06,179.36,179.35,12.23322213]
[1752830657418,0.06,179.36,179.35,12.48322213]
[1752830657780,0.06,179.36,179.35,0.25]
[1752830657984,0.06,179.36,179.35,12.48322213]
[1752830659208,0.06,179.36,179.35,13.45492356]
[1752830660295,0.06,179.36,179.34,63.32760008]
[1752830661112,0.06,179.36,179.34,68.90358393]
[1752830661699,0.06,179.36,179.34,63.32760008]
[1752830662107,0.76,179.36,179.34,63.32760008]
[1752830662288,0.06,179.36,179.34,76.53271964]
[1752830662487,0.06,179.36,179.35,7.62923357]
[1752830662887,0.06,179.36,179.34,76.53271964]
[1752830663610,0.06,179.36,179.35,41.32923357]
[1752830663909,0.06,179.36,179.35,68.89573357]
[1752830664784,0.06,179.36,179.35,42.89573357]
[1752830665189,0.06,179.36,179.35,48.22142356]
[1752830665397,0.06,179.36,179.35,48.47142356]
[1752830666491,0.06,179.36,179.35,54.04142356]
[1752830667097,0.06,179.36,179.35,218.19640753]
[1752830667295,0.06,179.4,179.39,33.45]
[1752830667496,0.06,179.4,179.39,70.91667824]
[1752830667684,0.06,179.4,179.39,71.16667824]
[1752830668911,0.06,179.4,179.39,41.63667824]
[1752830669213,0.06,179.4,179.39,62.71]
[1752830669517,0.06,179.4,179.39,70.33923357]
[1752830670387,0.06,179.4,179.39,75.9136803]
[1752830671054,0.06,179.4,179.39,70.33923357]
[1752830671588,0.06,179.4,179.39,62.71]
[1752830672087,0.76,179.4,179.39,62.71]
[1752830672296,0.76,179.4,179.39,29.26]
[1752830672707,0.06,179.4,179.39,29.26]
[1752830672899,0.06,179.4,179.39,36.88923357]
[1752830673105,0.06,179.4,179.39,42.4636803]
[1752830673415,0.06,179.4,179.39,76.1636803]
[1752830674213,0.06,179.4,179.39,62.71]
[1752830676006,0.06,179.4,179.39,222.5636803]
[1752830676211,0.06,179.43,179.42,59.45]
[1752830676525,0.06,179.43,179.42,96.87658503]
[1752830677317,0.06,179.43,179.42,102.45009968]
[1752830677821,0.06,179.43,179.42,89.24735146]
[1752830678003,0.7,179.43,179.42,60.00735146]
[1752830678206,0.0464647,179.44,179.42,94.2635141]
[1752830678419,0.0464647,179.44,179.43,29.24]
[1752830678619,0.7464647,179.44,179.43,29.24]
[1752830679805,0.0464647,179.44,179.43,29.24]
[1752830680014,0.0464647,179.44,179.43,34.81320403]
[1752830680326,0.0464647,179.44,179.43,36.86923357]
[1752830680621,0.0464647,179.44,179.43,29.24]
[1752830682427,0.0464647,179.44,179.43,34.81320403]
[1752830682617,0.0464647,179.44,179.43,29.24]
[1752830682926,0.0464647,179.44,179.43,34.81320403]
[1752830683424,0.0464647,179.44,179.43,29.24]
[1752830683925,0.0464647,179.44,179.43,42.999758]
[1752830684595,0.7464647,179.44,179.43,29.24]
[1752830684816,8.37569827,179.44,179.4,146.4]
[1752830685020,0.7,179.43,179.41,29.22]
[1752830685324,0.7,179.42,179.41,29.22]
[1752830687324,8.37569827,179.44,179.41,29.22]
[1752830687526,0.7,179.43,179.41,29.22]
[1752830687906,0.06,179.42,179.41,29.22]
[1752830688106,0.06,179.42,179.41,37.4066161]
[1752830688828,0.06,179.42,179.41,29.77738253]
[1752830689136,0.06,179.42,179.41,42.42305888]
[1752830689829,0.06,179.42,179.41,36.84923357]
[1752830690356,0.06,179.42,179.41,29.22]
[1752830691230,0.06,179.42,179.41,42.42305888]
[1752830692914,0.06,179.42,179.41,34.79382531]
[1752830694513,0.06,179.42,179.41,42.98044141]
[1752830695033,0.06,179.42,179.41,76.43044141]
[1752830695236,0.06,179.42,179.41,76.62044141]
[1752830696726,0.06,179.42,179.41,102.62044141]
[1752830696919,0.06,179.42,179.41,223.02044141]
[1752830697120,0.06,179.42,179.41,240.80984285]
[1752830697504,0.0464647,179.44,179.41,240.80984285]
[1752830697505,0.0464647,179.44,179.43,59.45]
[1752830697740,0.0464647,179.44,179.43,96.83655397]
[1752830698038,0.0464647,179.44,179.43,102.59655397]
[1752830698408,0.0464647,179.44,179.43,109.226458]
[1752830698611,0.0464647,179.44,179.43,114.796458]
[1752830699312,0.0464647,179.44,179.43,109.226458]
[1752830700319,0.0464647,179.44,179.43,65.58052443]
[1752830700625,0.7464647,179.44,179.43,60.0073204]
[1752830700823,0.0464647,179.44,179.43,88.63]
[1752830701077,0.7464647,179.44,179.43,62.63]
[1752830701211,8.37569827,179.44,179.42,29.18]
[1752830701409,8.32923357,179.43,179.42,29.18]
[1752830703656,0.7,179.43,179.42,29.18]
[1752830703861,8.32923357,179.43,179.42,29.18]
[1752830705731,8.32923357,179.43,179.42,62.63]
[1752830707337,13.9024376,179.43,179.4,29.16]
[1752830707643,7.62923357,179.41,179.4,29.16]
[1752830707832,0.7,179.43,179.4,62.61]
[1752830708040,0.7,179.43,179.4,70.79664717]
[1752830708421,0.0464647,179.44,179.4,70.79664717]
[1752830708737,0.7464647,179.44,179.4,70.79664717]
[1752830708940,0.7,179.43,179.4,70.79664717]
[1752830709446,0.7,179.43,179.4,76.37065626]
[1752830709750,0.7,179.42,179.4,68.18412067]
[1752830710347,0.7,179.42,179.41,33.45]
[1752830710718,0.0464647,179.44,179.41,33.45]
[1752830710919,0.0464647,179.44,179.42,62.61]
[1752830711120,0.0464647,179.44,179.42,70.23923357]
[1752830711550,0.0464647,179.44,179.42,62.61]
[1752830712032,0.0464647,179.44,179.42,76.37008258]
[1752830712546,0.0464647,179.44,179.43,41.07923357]
[1752830713762,0.0464647,179.44,179.43,46.6524376]
[1752830714766,0.0464647,179.44,179.43,41.07923357]
[1752830714965,0.0464647,179.44,179.43,33.45]
[1752830715173,0.0464647,179.44,179.43,46.6524376]
[1752830715633,0.0464647,179.44,179.43,48.3448376]
[1752830715838,0.0464647,179.44,179.43,211.52952157]
[1752830716031,0.06,179.47,179.46,76.23468397]
[1752830716233,0.06,179.47,179.46,259.96114477]
[1752830716556,0.06,179.47,179.46,206.04]
[1752830716734,0.06,179.47,179.46,234.99]
[1752830716940,0.74,179.47,179.46,88.59]
[1752830718554,0.06,179.47,179.46,88.59]
[1752830719756,0.74,179.47,179.46,88.59]
[1752830720362,0.74,179.47,179.46,94.16]
[1752830720562,0.74,179.47,179.46,68.16]
[1752830720563,8.36923357,179.47,179.46,68.16]
[1752830720731,8.36923357,179.47,179.46,29.14]
[1752830720936,8.36923357,179.47,179.45,29.14]
[1752830721134,8.30923357,179.46,179.45,29.14]
[1752830721769,13.88150594,179.46,179.45,29.14]
[1752830722058,13.88150594,179.46,179.44,29.14]
[1752830722242,8.30923357,179.45,179.44,29.14]
[1752830722953,13.88181646,179.45,179.41,33.45]
[1752830723158,7.62923357,179.43,179.42,29.14]
[1752830723465,8.30923357,179.43,179.42,29.14]
[1752830723853,8.30923357,179.43,179.42,62.59]
[1752830724048,0.68,179.43,179.42,62.59]
[1752830724254,8.30923357,179.43,179.42,62.59]
[1752830726063,0.68,179.43,179.42,62.59]
[1752830726865,0.68,179.45,179.42,62.59]
[1752830727077,8.30923357,179.45,179.42,62.59]
[1752830727250,0.68,179.44,179.42,62.59]
[1752830727445,8.30923357,179.44,179.42,62.59]
[1752830727768,0.68,179.44,179.42,62.59]
[1752830727949,8.30923357,179.46,179.42,62.59]
[1752830728149,8.30923357,179.45,179.42,62.59]
[1752830728869,7.62923357,179.45,179.42,62.59]
[1752830729055,0.68,179.44,179.42,62.59]
[1752830729465,0.68,179.44,179.42,68.16346461]
[1752830729641,0.06,179.47,179.43,0.5573204]
[1752830729846,0.06,179.47,179.44,70.19923357]
[1752830730643,0.74,179.47,179.44,62.57]
[1752830731548,0.74,179.47,179.44,68.14284186]
[1752830734454,0.06,179.47,179.44,75.77207543]
[1752830734850,0.06,179.47,179.46,33.45]
[1752830735054,0.06,179.47,179.46,70.19923357]
[1752830736383,0.06,179.47,179.46,70.38923357]
[1752830736568,0.06,179.47,179.46,75.96150594]
[1752830737751,0.06,179.47,179.46,75.77150594]
[1752830738376,0.06,179.47,179.46,46.65150594]
[1752830738680,0.06,179.47,179.46,29.1]
[1752830738681,8.36923357,179.47,179.46,29.1]
[1752830739158,8.36923357,179.47,179.42,0.03]
[1752830739363,7.62923357,179.45,179.43,29.1]
[1752830739571,0.68,179.45,179.43,29.1]
[1752830740174,0.68,179.44,179.43,29.1]
[1752830740580,7.62923357,179.46,179.43,29.1]
[1752830740755,0.68,179.45,179.43,29.1]
[1752830740958,0.68,179.44,179.43,29.1]
[1752830741577,8.30923357,179.46,179.43,29.1]
[1752830741764,0.68,179.45,179.43,29.1]
[1752830742179,7.62923357,179.45,179.43,29.1]
[1752830742354,0.68,179.44,179.43,29.1]
[1752830743363,8.30923357,179.44,179.43,29.1]
[1752830744185,8.30923357,179.44,179.42,29.11]
[1752830744186,13.88223206,179.44,179.42,29.11]
[1752830744369,8.29923357,179.43,179.42,29.11]
[1752830745592,8.29923357,179.46,179.42,62.56]
[1752830746164,7.62923357,179.46,179.42,62.56]
[1752830746492,0.67,179.45,179.42,62.56]
[1752830746669,0.67,179.44,179.42,62.56]
[1752830747870,13.20160476,179.46,179.42,62.56]
[1752830748077,13.87160476,179.46,179.42,62.56]
[1752830748465,8.29923357,179.46,179.42,62.56]
[1752830748686,7.62923357,179.43,179.4,0.03]
[1752830748902,7.62923357,179.41,179.39,33.45]
[1752830749072,7.62923357,179.4,179.36,0.03]
[1752830749386,7.62923357,179.37,179.36,0.03]
[1752830749688,0.67,179.39,179.36,0.03]
[1752830749897,0.67,179.39,179.37,29.08]
[1752830750090,0.67,179.38,179.37,29.08]
[1752830750394,0.67,179.38,179.36,0.03]
[1752830750395,13.87428466,179.38,179.36,0.03]
[1752830750689,7.62923357,179.37,179.36,0.03]
[1752830750895,16.78468397,179.36,179.34,0.03]
[1752830751115,13.71263357,179.35,179.32,0.03]
[1752830751400,7.62923357,179.33,179.32,0.03]
[1752830751781,16.78468397,179.32,179.23,0.03]
[1752830752087,7.62923357,179.25,179.23,29.11]
[1752830752680,8.29923357,179.25,179.23,29.11]
[1752830752901,16.78468397,179.29,179.23,29.11]
[1752830753109,7.62923357,179.28,179.23,29.83]
[1752830753623,7.62923357,179.26,179.23,29.11]
[1752830753814,8.29923357,179.26,179.23,29.11]
[1752830753974,0.67,179.26,179.23,29.11]
[1752830754305,8.29923357,179.25,179.23,29.11]
[1752830754688,7.62923357,179.25,179.23,29.11]
[1752830755192,8.29923357,179.24,179.23,0.03]
[1752830755903,17.45468397,179.24,179.23,0.03]
[1752830756120,25.08391754,179.24,179.23,0.03]
[1752830756907,30.66302934,179.24,179.23,0.03]
[1752830759214,59.74302934,179.24,179.23,0.03]
[1752830760814,20.0720231,179.3,179.23,0.03]
[1752830761002,7.62923357,179.3,179.23,0.75]
[1752830761181,15.82026444,179.35,179.23,0.75]
[1752830761182,15.82026444,179.35,179.28,7.62923357]
[1752830761383,15.26736599,179.35,179.29,8.34923357]